[Event "24th European Women Club Cup 2019"]
[Site "Ulcinj"]
[Date "2019.11.15"]
[Round "6.17"]
[White "Lahav, Michal"]
[Black "Bodnaruk, Anastasia"]
[Result "0-1"]
[ECO "A25"]
[WhiteElo "2221"]
[BlackElo "2412"]
[Annotator "NA"]
[PlyCount "126"]
[EventDate "2019.11.10"]
[EventType "team-tourn"]
[EventCountry "MNE"]
[SourceTitle "playchess.com"]
[Source "ChessBase"]
[SourceQuality "1"]
[WhiteTeam "Rishon Lezion"]
[BlackTeam "SPB"]
[TimeControl "40/5400+30:1800+30"]

1. c4 {[%emt 0:00:00]} e5 {[%emt 0:00:00]} 2. g3 {[%emt 0:00:00]} Nc6 {[%emt 0:00:35]} 3. Bg2 {[%emt 0:00:00]} g6 {[%emt 0:00:07]} 4. Nc3 {[%emt 0:00:25]} Bg7 {[%emt 0:00:06]} 5. Rb1 {[%emt 0:00:16]} d6 {[%emt 0:03:49]} 6. b4 {[%emt 0:00:33]} f5 {[%emt 0:02:02]} 7. b5 {[%emt 0:01:04]} Nce7 {[%emt 0:00:23]} 8. e3 {[%emt 0:03:15]} Nf6 {[%emt 0:00:27]} 9. Nge2 {[%emt 0:00:04]} O-O {[%emt 0:01:12]} 10. O-O {[%emt 0:00:12]} Be6 {[%emt 0:06:46]} 11. d3 {[%emt 0:03:02]} c6 {[%emt 0:10:40]} 12. bxc6 {[%emt 0:03:05]} bxc6 {[%emt 0:00:03]} 13. Qa4 {[%emt 0:03:25]} Qc7 {[%emt 0:00:48]} 14. Ba3 {[%emt 0:10:30]} Nd7 {[%emt 0:04:49]} 15. Qa6 {[%emt 0:15:25]} Rab8 {[%emt 0:08:16]} 16. Nd5 {[%emt 0:03:36]} Bxd5 {[%emt 0:27:37]} 17. cxd5 {[%emt 0:00:02]} c5 {[%emt 0:00:29]} 18. d4 {[%emt 0:06:29]} Rb6 {[%emt 0:04:45]} 19. Rxb6 {[%emt 0:01:09]} Qxb6 {[%emt 0:01:15]} 20. Qa4 {[%emt 0:01:38]} Rd8 {[%emt 0:01:05]} 21. dxc5 {[%emt 0:05:44]} Nxc5 {[%emt 0:01:31]} 22. Bxc5 {[%emt 0:10:57]} Qxc5 {[%emt 0:00:38]} 23. Rc1 {[%emt 0:00:38]} Qb6 {[%emt 0:00:14]} 24. Qb3 {[%emt 0:02:52]} Qxb3 {[%emt 0:08:13]} 25. axb3 {[%emt 0:00:02]} Rb8 {[%emt 0:00:22]} 26. Rc7 {[%emt 0:00:24]} Kf8 {[%emt 0:01:43]} 27. Rxa7 {[%emt 0:02:14]} Rxb3 {[%emt 0:00:06]} 28. Ra6 {[%emt 0:01:08]} Rb1+ {[%emt 0:01:03]} 29. Bf1 {[%emt 0:00:02]} Nxd5 {[%emt 0:00:23]} 30. Rxd6 {[%emt 0:00:05]} Nf6 {[%emt 0:04:22]} 31. Nc3 {[%emt 0:03:56]} Rc1 {[%emt 0:00:34]} 32. Nb5 {[%emt 0:01:08]} Ne4 {[%emt 0:04:50]} 33. Rd7 {[%emt 0:00:17]} Bf6 {[%emt 0:01:32]} 34. Nd6 {[%emt 0:07:23]} Nd2 {[%emt 0:02:34]} 35. Rf7+ {[%emt 0:00:11]} Kg8 {[%emt 0:00:01]} 36. Rxf6 {[%emt 0:00:12]} Nxf1 {[%emt 0:01:46]} 37. Kg2 {[%emt 0:00:01]} Nd2 {[%emt 0:00:14]} 38. Re6 {[%emt 0:14:34]} e4 {[%emt 0:00:21]} 39. Re8+ {[%emt 0:00:03]} Kg7 {[%emt 0:00:02]} 40. Rc8 {[%emt 0:00:00]} Rb1 {[%emt 0:00:00]} 41. Rc7+ {[%emt 0:04:27]} Kf8 {[%emt 0:10:20]} 42. Rf7+ {[%emt 0:02:09]} Kg8 {[%emt 0:00:01]} 43. Rd7 {[%emt 0:00:02]} Nf3 {[%emt 0:01:16]} 44. h4 {[%emt 0:00:26]} Ne5 {[%emt 0:07:25]} 45. Re7 {[%emt 0:08:10]} Ng4 {[%emt 0:00:37]} 46. Rb7 {[%emt 0:01:28]} Rd1 {[%emt 0:06:02]} 47. Rb8+ {[%emt 0:00:26]} Kg7 {[%emt 0:00:01]} 48. Rd8 {[%emt 0:00:01]} Re1 {[%emt 0:01:14]} 49. Ne8+ {[%emt 0:13:11]} Kf7 {[%emt 0:00:59]} 50. Nc7 {[%emt 0:00:02]} Re2 {[%emt 0:00:31]} 51. Rd7+ {[%emt 0:00:02]} Kf6 {[%emt 0:02:36]} 52. Rxh7 {[%emt 0:02:41]} Rxf2+ {[%emt 0:00:37]} 53. Kg1 {[%emt 0:00:04]} Rf3 {[%emt 0:01:13]} 54. Nd5+ {[%emt 0:00:11]} Ke5 {[%emt 0:00:27]} 55. Nf4 {[%emt 0:00:10]} Rxg3+ {[%emt 0:00:31]} 56. Kh1 {[%emt 0:00:18]} Nxe3 {[%emt 0:00:26]} 57. Ne2 {[%emt 0:01:12]} Rg2 {[%emt 0:00:21]} 58. Ng1 {[%emt 0:01:14]} Rc2 {[%emt 0:01:33]} 59. h5 {[%emt 0:00:33]} gxh5 {[%emt 0:00:14]} 60. Nh3 {[%emt 0:02:18]} Ng4 {[%emt 0:00:33]} 61. Ng5 {[%emt 0:00:41]} Kf4 {[%emt 0:01:09]} 62. Rxh5 {[%emt 0:01:34]} e3 {[%emt 0:00:20]} 63. Nh3+ {[%emt 0:01:50]} Kg3 {[%emt 0:00:06]} 0-1

[Event "24th European Women Club Cup 2019"]
[Site "Ulcinj"]
[Date "2019.11.15"]
[Round "6.18"]
[White "Ovod, Evgenija"]
[Black "Reprun, Nadejda"]
[Result "1-0"]
[ECO "B12"]
[WhiteElo "2347"]
[BlackElo "1989"]
[Annotator "NA"]
[PlyCount "67"]
[EventDate "2019.11.10"]
[EventType "team-tourn"]
[EventCountry "MNE"]
[SourceTitle "playchess.com"]
[Source "ChessBase"]
[SourceQuality "1"]
[WhiteTeam "SPB"]
[BlackTeam "Rishon Lezion"]
[TimeControl "40/5400+30:1800+30"]

1. e4 {[%emt 0:00:00]} c6 {[%emt 0:00:00]} 2. d4 {[%emt 0:00:00]} d5 {[%emt 0:00:00]} 3. e5 {[%emt 0:00:00]} c5 {[%emt 0:00:00]} 4. dxc5 {[%emt 0:00:00]} Nc6 {[%emt 0:00:00]} 5. f4 {[%emt 0:00:01]} e6 {[%emt 0:00:04]} 6. Be3 {[%emt 0:00:07]} d4 {[%emt 0:00:10]} 7. Bf2 {[%emt 0:00:06]} Bxc5 {[%emt 0:00:06]} 8. Nd2 {[%emt 0:00:07]} Nh6 {[%emt 0:00:12]} 9. Qf3 {[%emt 0:14:27]} O-O {[%emt 0:13:11]} 10. O-O-O {[%emt 0:00:11]} Qb6 {[%emt 0:21:29]} 11. a3 {[%emt 0:05:36]} a5 {[%emt 0:02:46]} 12. Bd3 {[%emt 0:01:06]} Bd7 {[%emt 0:06:13]} 13. Nh3 {[%emt 0:14:57]} f6 {[%emt 0:04:27]} 14. exf6 {[%emt 0:02:27]} Rxf6 {[%emt 0:00:08]} 15. Ng5 {[%emt 0:00:32]} Raf8 {[%emt 0:15:29]} 16. Bxh7+ {[%emt 0:17:53]} Kh8 {[%emt 0:00:15]} 17. Qh5 {[%emt 0:00:17]} e5 {[%emt 0:04:43]} 18. f5 {[%emt 0:01:56]} Bxf5 {[%emt 0:04:00]} 19. Bxf5 {[%emt 0:00:29]} Rxf5 {[%emt 0:00:03]} 20. Bh4 {[%emt 0:06:28]} Nd8 {[%emt 0:05:22]} 21. g4 {[%emt 0:12:55]} Rf4 {[%emt 0:00:22]} 22. Nc4 {[%emt 0:00:31]} Qf6 {[%emt 0:09:59]} 23. Nxe5 {[%emt 0:00:44]} Kg8 {[%emt 0:01:56]} 24. Nd7 {[%emt 0:01:59]} Qd6 {[%emt 0:00:52]} 25. Nxc5 {[%emt 0:03:19]} Qxc5 {[%emt 0:00:07]} 26. Qg6 {[%emt 0:00:07]} R8f6 {[%emt 0:01:40]} 27. Qh7+ {[%emt 0:00:05]} Kf8 {[%emt 0:00:05]} 28. Qh8+ {[%emt 0:00:08]} Ng8 {[%emt 0:00:56]} 29. Nh7+ {[%emt 0:00:09]} Kf7 {[%emt 0:00:49]} 30. Nxf6 {[%emt 0:00:19]} gxf6 {[%emt 0:01:25]} 31. Qh7+ {[%emt 0:01:27]} Kf8 {[%emt 0:00:07]} 32. Qd7 {[%emt 0:05:54]} Nf7 {[%emt 0:01:14]} 33. Bg3 {[%emt 0:00:30]} Rxg4 {[%emt 0:00:23]} 34. Qxg4 1-0

[Event "24th European Women Club Cup 2019"]
[Site "Ulcinj"]
[Date "2019.11.15"]
[Round "6.19"]
[White "Federovski, Adi"]
[Black "Belenkaya, Dina"]
[Result "0-1"]
[ECO "B10"]
[WhiteElo "2005"]
[BlackElo "2302"]
[Annotator "NA"]
[PlyCount "72"]
[EventDate "2019.11.10"]
[EventType "team-tourn"]
[EventCountry "MNE"]
[SourceTitle "playchess.com"]
[Source "ChessBase"]
[SourceQuality "1"]
[WhiteTeam "Rishon Lezion"]
[BlackTeam "SPB"]
[TimeControl "40/5400+30:1800+30"]

1. e4 {[%emt 0:00:00]} c6 {[%emt 0:00:00]} 2. Nc3 {[%emt 0:00:00]} d5 {[%emt 0:00:00]} 3. Nf3 {[%emt 0:00:00]} Nf6 {[%emt 0:00:02]} 4. e5 {[%emt 0:00:15]} Ne4 {[%emt 0:00:23]} 5. Ne2 {[%emt 0:00:41]} Qb6 {[%emt 0:00:20]} 6. d4 {[%emt 0:00:16]} e6 {[%emt 0:00:28]} 7. a3 {[%emt 0:11:25]} c5 {[%emt 0:02:01]} 8. Ng3 {[%emt 0:02:02]} cxd4 {[%emt 0:11:48]} 9. Bd3 {[%emt 0:01:09]} Nc5 {[%emt 0:01:16]} 10. O-O {[%emt 0:05:31]} Nc6 {[%emt 0:03:43]} 11. b4 {[%emt 0:02:14]} Nxd3 {[%emt 0:03:16]} 12. Qxd3 {[%emt 0:00:13]} Bd7 {[%emt 0:01:41]} 13. Re1 {[%emt 0:02:24]} O-O-O {[%emt 0:16:09]} 14. Ne2 {[%emt 0:14:32]} Kb8 {[%emt 0:07:12]} 15. Nexd4 {[%emt 0:01:26]} Nxd4 {[%emt 0:00:55]} 16. Nxd4 {[%emt 0:00:27]} Rc8 {[%emt 0:02:02]} 17. Be3 {[%emt 0:08:33]} Qa6 {[%emt 0:01:26]} 18. b5 {[%emt 0:14:51]} Qa4 {[%emt 0:00:47]} 19. Reb1 {[%emt 0:04:44]} Be7 {[%emt 0:02:53]} 20. Rb3 {[%emt 0:02:12]} Rc4 {[%emt 0:08:13]} 21. Rab1 {[%emt 0:05:13]} Rhc8 {[%emt 0:05:28]} 22. h3 {[%emt 0:03:55]} h5 {[%emt 0:01:26]} 23. c3 {[%emt 0:07:38]} g5 {[%emt 0:02:09]} 24. Qh7 {[%emt 0:01:39]} Be8 {[%emt 0:14:05]} 25. Nc6+ {[%emt 0:01:59]} bxc6 {[%emt 0:03:27]} 26. bxc6+ {[%emt 0:05:31]} Ka8 {[%emt 0:00:24]} 27. Rb7 {[%emt 0:00:13]} Bc5 {[%emt 0:03:13]} 28. c7 {[%emt 0:03:28]} Bb6 {[%emt 0:01:06]} 29. Rb8+ {[%emt 0:00:54]} Rxb8 {[%emt 0:00:03]} 30. cxb8=Q+ {[%emt 0:00:42]} Kxb8 {[%emt 0:00:04]} 31. Bxb6 {[%emt 0:00:24]} axb6 {[%emt 0:00:21]} 32. Rxb6+ {[%emt 0:00:22]} Kc8 {[%emt 0:01:46]} 33. Qb1 {[%emt 0:01:03]} Qa7 {[%emt 0:00:24]} 34. Qb2 {[%emt 0:00:20]} Qc7 {[%emt 0:02:25]} 35. Ra6 {[%emt 0:00:38]} Bc6 {[%emt 0:00:20]} 36. Qb3 {[%emt 0:00:30]} Qxe5 {[%emt 0:01:58]} 0-1

[Event "24th European Women Club Cup 2019"]
[Site "Ulcinj"]
[Date "2019.11.15"]
[Round "6.20"]
[White "Styazhkina, Anna"]
[Black "Vardi, Shlomit"]
[Result "1-0"]
[ECO "B06"]
[WhiteElo "2280"]
[BlackElo "1935"]
[Annotator "NA"]
[PlyCount "51"]
[EventDate "2019.11.10"]
[EventType "team-tourn"]
[EventCountry "MNE"]
[SourceTitle "playchess.com"]
[Source "ChessBase"]
[SourceQuality "1"]
[WhiteTeam "SPB"]
[BlackTeam "Rishon Lezion"]
[TimeControl "40/5400+30:1800+30"]

1. e4 {[%emt 0:00:00]} d6 {[%emt 0:00:00]} 2. d4 {[%emt 0:00:00]} g6 {[%emt 0:00:00]} 3. Nc3 {[%emt 0:00:06]} Bg7 {[%emt 0:00:00]} 4. f4 {[%emt 0:00:22]} a6 {[%emt 0:00:00]} 5. a4 {[%emt 0:00:38]} Nc6 {[%emt 0:11:10]} 6. d5 {[%emt 0:05:50]} Nb8 {[%emt 0:00:59]} 7. Nf3 {[%emt 0:01:41]} e6 {[%emt 0:01:49]} 8. dxe6 {[%emt 0:06:14]} Bxe6 {[%emt 0:01:49]} 9. Bd3 {[%emt 0:00:51]} Nf6 {[%emt 0:05:57]} 10. O-O {[%emt 0:02:46]} c6 {[%emt 0:08:52]} 11. f5 {[%emt 0:11:01]} Bc8 {[%emt 0:00:09]} 12. Bc4 {[%emt 0:01:17]} d5 {[%emt 0:05:49]} 13. exd5 {[%emt 0:03:55]} Bxf5 {[%emt 0:00:27]} 14. Re1+ {[%emt 0:02:33]} Kf8 {[%emt 0:00:09]} 15. d6 {[%emt 0:03:56]} Qb6+ {[%emt 0:08:00]} 16. Be3 {[%emt 0:00:25]} Qb4 {[%emt 0:01:20]} 17. Bb3 {[%emt 0:10:01]} Nbd7 {[%emt 0:09:04]} 18. a5 {[%emt 0:03:03]} Ne8 {[%emt 0:15:22]} 19. Bf2 {[%emt 0:09:28]} b5 {[%emt 0:07:22]} 20. axb6 {[%emt 0:03:41]} Nxb6 {[%emt 0:00:07]} 21. Na4 {[%emt 0:08:27]} Nd7 {[%emt 0:03:35]} 22. Re7 {[%emt 0:00:39]} Nxd6 {[%emt 0:02:56]} 23. Rxd7 {[%emt 0:05:34]} Bxd7 {[%emt 0:00:27]} 24. Bc5 {[%emt 0:00:06]} Qg4 {[%emt 0:01:46]} 25. Nb6 {[%emt 0:00:18]} Rd8 {[%emt 0:02:19]} 26. Qxd6+ {[%emt 0:00:12]} 1-0

[Event "24th European Women Club Cup 2019"]
[Site "Ulcinj"]
[Date "2019.11.15"]
[Round "6.21"]
[White "Injac, Teodora"]
[Black "Len, Irina"]
[Result "1-0"]
[ECO "A06"]
[WhiteElo "2257"]
[BlackElo "2036"]
[Annotator "NA"]
[PlyCount "117"]
[EventDate "2019.11.10"]
[EventType "team-tourn"]
[EventCountry "MNE"]
[SourceTitle "playchess.com"]
[Source "ChessBase"]
[SourceQuality "1"]
[WhiteTeam "Jelica PEP"]
[BlackTeam "Hertzeliya"]
[TimeControl "40/5400+30:1800+30"]

1. Nf3 {[%emt 0:00:00]} d5 {[%emt 0:00:00]} 2. g3 {[%emt 0:00:17]} c6 {[%emt 0:00:20]} 3. Bg2 {[%emt 0:00:27]} Nd7 {[%emt 0:04:18]} 4. d4 {[%emt 0:11:29]} Ngf6 {[%emt 0:00:14]} 5. O-O {[%emt 0:01:05]} Ne4 {[%emt 0:03:28]} 6. c4 {[%emt 0:04:31]} e6 {[%emt 0:01:26]} 7. Nfd2 {[%emt 0:04:21]} Nxd2 {[%emt 0:05:54]} 8. Nxd2 {[%emt 0:04:39]} f5 {[%emt 0:00:14]} 9. Nf3 {[%emt 0:08:43]} Be7 {[%emt 0:00:10]} 10. Qc2 {[%emt 0:01:08]} O-O {[%emt 0:00:09]} 11. Rd1 {[%emt 0:07:17]} Nf6 {[%emt 0:01:59]} 12. Ne5 {[%emt 0:01:09]} Qe8 {[%emt 0:01:15]} 13. Bd2 {[%emt 0:04:59]} Qh5 {[%emt 0:07:55]} 14. b4 {[%emt 0:06:14]} Bd6 {[%emt 0:01:49]} 15. f3 {[%emt 0:12:57]} Bd7 {[%emt 0:02:37]} 16. Rab1 {[%emt 0:01:21]} Be8 {[%emt 0:04:12]} 17. Nd3 {[%emt 0:00:14]} Qf7 {[%emt 0:15:54]} 18. a4 {[%emt 0:01:29]} a6 {[%emt 0:01:37]} 19. Bf4 {[%emt 0:06:58]} Bxf4 {[%emt 0:04:08]} 20. Nxf4 {[%emt 0:00:18]} dxc4 {[%emt 0:00:29]} 21. Qxc4 {[%emt 0:00:50]} Nd5 {[%emt 0:00:11]} 22. Qc1 {[%emt 0:09:00]} Qe7 {[%emt 0:00:29]} 23. Nd3 {[%emt 0:04:17]} Rd8 {[%emt 0:01:20]} 24. a5 {[%emt 0:01:46]} g5 {[%emt 0:05:33]} 25. e4 {[%emt 0:00:31]} Nc7 {[%emt 0:00:19]} 26. Qc5 {[%emt 0:01:18]} Qg7 {[%emt 0:02:06]} 27. Ne5 {[%emt 0:00:06]} Bh5 {[%emt 0:02:32]} 28. Rd2 {[%emt 0:00:10]} h6 {[%emt 0:01:29]} 29. Re1 {[%emt 0:00:48]} Rfe8 {[%emt 0:01:35]} 30. Bf1 {[%emt 0:01:17]} Kh8 {[%emt 0:06:38]} 31. g4 {[%emt 0:00:36]} fxg4 {[%emt 0:00:26]} 32. fxg4 {[%emt 0:00:01]} Bg6 {[%emt 0:00:17]} 33. Rf2 {[%emt 0:01:08]} Kh7 {[%emt 0:00:52]} 34. Bd3 {[%emt 0:00:34]} Qe7 {[%emt 0:10:17]} 35. Ref1 {[%emt 0:00:06]} Qxc5 {[%emt 0:00:30]} 36. dxc5 {[%emt 0:00:20]} Re7 {[%emt 0:00:23]} 37. Rf6 {[%emt 0:02:05]} Rg7 {[%emt 0:01:25]} 38. Bb1 {[%emt 0:00:57]} Be8 {[%emt 0:04:19]} 39. Nc4 {[%emt 0:01:41]} e5 {[%emt 0:03:43]} 40. Nxe5 {[%emt 0:00:00]} Re7 {[%emt 0:00:00]} 41. Nc4 {[%emt 0:09:21]} Bg6 {[%emt 0:05:35]} 42. Nd6 {[%emt 0:02:58]} Ne6 {[%emt 0:00:29]} 43. Rxg6 {[%emt 0:10:15]} Kxg6 {[%emt 0:01:03]} 44. e5+ {[%emt 0:00:06]} Kg7 {[%emt 0:00:28]} 45. Rf6 {[%emt 0:00:45]} Nd4 {[%emt 0:02:11]} 46. Rg6+ {[%emt 0:01:13]} Kf8 {[%emt 0:01:08]} 47. Ba2 {[%emt 0:03:03]} Rh7 {[%emt 0:08:41]} 48. Kf2 {[%emt 0:01:55]} Ke7 {[%emt 0:02:03]} 49. Ke3 {[%emt 0:02:07]} Nc2+ {[%emt 0:00:51]} 50. Ke4 {[%emt 0:00:02]} Nxb4 {[%emt 0:00:26]} 51. Be6 {[%emt 0:01:03]} Rf8 {[%emt 0:00:39]} 52. Bf5 {[%emt 0:01:08]} Kd8 {[%emt 0:00:56]} 53. Rf6 {[%emt 0:02:36]} Rhh8 {[%emt 0:00:19]} 54. Nf7+ {[%emt 0:02:21]} Ke7 {[%emt 0:04:17]} 55. Nxh8 {[%emt 0:00:02]} Rxh8 {[%emt 0:00:06]} 56. Rd6 {[%emt 0:00:19]} Rd8 {[%emt 0:01:43]} 57. Rxh6 {[%emt 0:00:05]} Rd5 {[%emt 0:02:45]} 58. Rh7+ {[%emt 0:00:02]} Kf8 {[%emt 0:01:43]} 59. e6 {[%emt 0:00:50]} 1-0

[Event "24th European Women Club Cup 2019"]
[Site "Ulcinj"]
[Date "2019.11.15"]
[Round "6.22"]
[White "Haitovich, Avital"]
[Black "Velikic, Adela"]
[Result "0-1"]
[ECO "A06"]
[WhiteElo "1998"]
[BlackElo "2275"]
[Annotator "NA"]
[PlyCount "96"]
[EventDate "2019.11.10"]
[EventType "team-tourn"]
[EventCountry "MNE"]
[SourceTitle "playchess.com"]
[Source "ChessBase"]
[SourceQuality "1"]
[WhiteTeam "Hertzeliya"]
[BlackTeam "Jelica PEP"]
[TimeControl "40/5400+30:1800+30"]

1. Nf3 {[%emt 0:00:00]} d5 {[%emt 0:00:00]} 2. g3 {[%emt 0:00:00]} Nf6 {[%emt 0:00:00]} 3. Bg2 {[%emt 0:00:00]} c6 {[%emt 0:00:00]} 4. O-O {[%emt 0:00:00]} Bf5 {[%emt 0:00:02]} 5. d3 {[%emt 0:00:11]} e6 {[%emt 0:00:11]} 6. Nbd2 {[%emt 0:02:50]} h6 {[%emt 0:00:15]} 7. c4 {[%emt 0:02:41]} Be7 {[%emt 0:01:51]} 8. b3 {[%emt 0:02:46]} O-O {[%emt 0:01:33]} 9. Bb2 {[%emt 0:00:15]} a5 {[%emt 0:02:25]} 10. a3 {[%emt 0:04:21]} Nbd7 {[%emt 0:02:10]} 11. Re1 {[%emt 0:03:50]} Bh7 {[%emt 0:00:47]} 12. Bc3 {[%emt 0:10:44]} b5 {[%emt 0:10:28]} 13. b4 {[%emt 0:08:11]} bxc4 {[%emt 0:11:50]} 14. dxc4 {[%emt 0:02:31]} axb4 {[%emt 0:00:31]} 15. axb4 {[%emt 0:00:58]} Qb6 {[%emt 0:01:18]} 16. c5 {[%emt 0:09:04]} Qc7 {[%emt 0:02:33]} 17. Qb3 {[%emt 0:06:43]} e5 {[%emt 0:11:34]} 18. e3 {[%emt 0:04:00]} Ne4 {[%emt 0:00:56]} 19. Nxe4 {[%emt 0:01:33]} Bxe4 {[%emt 0:00:09]} 20. Qb2 {[%emt 0:09:16]} Bf6 {[%emt 0:01:26]} 21. Nd2 {[%emt 0:03:25]} Bxg2 {[%emt 0:02:08]} 22. Kxg2 {[%emt 0:00:03]} e4 {[%emt 0:00:54]} 23. Bxf6 {[%emt 0:01:15]} Nxf6 {[%emt 0:00:18]} 24. Rxa8 {[%emt 0:02:31]} Rxa8 {[%emt 0:00:05]} 25. Ra1 {[%emt 0:00:52]} Rb8 {[%emt 0:01:32]} 26. Qa3 {[%emt 0:03:51]} Qb7 {[%emt 0:10:45]} 27. Rb1 {[%emt 0:01:35]} Qb5 {[%emt 0:04:07]} 28. Qb3 {[%emt 0:06:07]} Qe2 {[%emt 0:04:53]} 29. Qc3 {[%emt 0:06:17]} Ng4 {[%emt 0:04:20]} 30. Rf1 {[%emt 0:00:10]} f6 {[%emt 0:01:02]} 31. Nb3 {[%emt 0:04:07]} Qf3+ {[%emt 0:12:42]} 32. Kg1 {[%emt 0:00:15]} Ne5 {[%emt 0:00:36]} 33. Nd4 {[%emt 0:01:23]} Qh5 {[%emt 0:00:18]} 34. Qb3 {[%emt 0:02:26]} Nf3+ {[%emt 0:03:32]} 35. Nxf3 {[%emt 0:00:06]} exf3 {[%emt 0:00:05]} 36. h4 {[%emt 0:00:15]} Qg4 {[%emt 0:00:24]} 37. Kh2 {[%emt 0:00:29]} Qxb4 {[%emt 0:00:30]} 38. Qxb4 {[%emt 0:02:48]} Rxb4 {[%emt 0:00:06]} 39. Rd1 {[%emt 0:00:37]} Rc4 {[%emt 0:01:12]} 40. Rd4 {[%emt 0:00:00]} Rxc5 {[%emt 0:00:00]} 41. g4 {[%emt 0:01:23]} Rc4 {[%emt 0:05:57]} 42. Kg3 {[%emt 0:00:52]} Rxd4 {[%emt 0:01:34]} 43. exd4 {[%emt 0:00:08]} Kf7 {[%emt 0:00:13]} 44. Kxf3 {[%emt 0:00:42]} Ke6 {[%emt 0:00:06]} 45. Kf4 {[%emt 0:05:47]} Kd6 {[%emt 0:04:43]} 46. h5 {[%emt 0:06:46]} c5 {[%emt 0:00:14]} 47. dxc5+ {[%emt 0:01:03]} Kxc5 {[%emt 0:00:04]} 48. Kf5 {[%emt 0:06:35]} d4 {[%emt 0:01:02]} 0-1

[Event "24th European Women Club Cup 2019"]
[Site "Ulcinj"]
[Date "2019.11.15"]
[Round "6.23"]
[White "Eric, Jovana"]
[Black "Yakovleva, Tatiana"]
[Result "1-0"]
[ECO "B10"]
[WhiteElo "2314"]
[BlackElo "1942"]
[Annotator "NA"]
[PlyCount "93"]
[EventDate "2019.11.10"]
[EventType "team-tourn"]
[EventCountry "MNE"]
[SourceTitle "playchess.com"]
[Source "ChessBase"]
[SourceQuality "1"]
[WhiteTeam "Jelica PEP"]
[BlackTeam "Hertzeliya"]
[TimeControl "40/5400+30:1800+30"]

1. e4 {[%emt 0:00:00]} c6 {[%emt 0:00:00]} 2. Nf3 {[%emt 0:00:03]} d5 {[%emt 0:00:00]} 3. exd5 {[%emt 0:00:11]} cxd5 {[%emt 0:00:00]} 4. Ne5 Nf6 {[%emt 0:01:26]} 5. d4 {[%emt 0:00:04]} e6 {[%emt 0:01:59]} 6. c3 {[%emt 0:01:35]} a6 {[%emt 0:02:10]} 7. Bd3 {[%emt 0:01:09]} Bd6 {[%emt 0:01:58]} 8. O-O {[%emt 0:01:41]} O-O {[%emt 0:01:21]} 9. Nd2 {[%emt 0:01:25]} Nbd7 {[%emt 0:05:07]} 10. Qe2 {[%emt 0:03:41]} Qc7 {[%emt 0:09:12]} 11. f4 {[%emt 0:03:30]} b5 {[%emt 0:01:42]} 12. Ndf3 {[%emt 0:02:14]} Bb7 {[%emt 0:02:32]} 13. Be3 {[%emt 0:03:28]} Ne4 {[%emt 0:07:37]} 14. a4 {[%emt 0:13:04]} bxa4 {[%emt 0:16:34]} 15. Rxa4 {[%emt 0:00:22]} Nb6 {[%emt 0:00:19]} 16. Raa1 {[%emt 0:07:47]} f6 {[%emt 0:01:47]} 17. Ng4 {[%emt 0:00:06]} Bxf4 {[%emt 0:04:16]} 18. Bxa6 {[%emt 0:04:09]} Bxa6 {[%emt 0:07:26]} 19. Rxa6 Rxa6 {[%emt 0:00:31]} 20. Qxa6 {[%emt 0:00:32]} Bd6 {[%emt 0:00:41]} 21. Qe2 {[%emt 0:04:23]} Ra8 {[%emt 0:01:47]} 22. Nf2 {[%emt 0:02:13]} Ra2 {[%emt 0:04:05]} 23. Bc1 {[%emt 0:01:25]} f5 {[%emt 0:03:35]} 24. Qb5 {[%emt 0:08:46]} Ra8 {[%emt 0:06:17]} 25. Nd3 {[%emt 0:06:45]} Nc4 {[%emt 0:02:36]} 26. Re1 {[%emt 0:07:13]} h6 {[%emt 0:00:14]} 27. Nb4 {[%emt 0:03:26]} Rb8 {[%emt 0:07:59]} 28. Qa4 {[%emt 0:04:38]} Bxb4 {[%emt 0:02:12]} 29. cxb4 {[%emt 0:00:05]} Qb7 {[%emt 0:00:28]} 30. Bf4 {[%emt 0:00:39]} Ra8 {[%emt 0:00:37]} 31. Qb3 {[%emt 0:01:49]} Qb5 {[%emt 0:00:34]} 32. Ne5 {[%emt 0:03:54]} Ra4 {[%emt 0:00:57]} 33. Nd3 {[%emt 0:00:46]} Ra8 {[%emt 0:03:55]} 34. Nc5 {[%emt 0:02:23]} Kf7 {[%emt 0:00:29]} 35. Rc1 {[%emt 0:05:26]} Nxc5 {[%emt 0:01:07]} 36. dxc5 {[%emt 0:00:05]} Ra4 {[%emt 0:00:09]} 37. Qf3 {[%emt 0:00:33]} Qxb4 {[%emt 0:00:47]} 38. b3 {[%emt 0:05:26]} Qxc5+ {[%emt 0:02:51]} 39. Kh1 {[%emt 0:00:03]} Rb4 {[%emt 0:00:45]} 40. bxc4 {[%emt 0:00:00]} Rxc4 {[%emt 0:00:00]} 41. Rf1 {[%emt 0:04:28]} Re4 {[%emt 0:02:38]} 42. h3 {[%emt 0:01:12]} g5 {[%emt 0:01:21]} 43. Qh5+ {[%emt 0:02:01]} Kg7 {[%emt 0:00:32]} 44. Rc1 {[%emt 0:04:38]} Qf8 {[%emt 0:02:38]} 45. Rc7+ {[%emt 0:07:23]} Kg8 {[%emt 0:00:20]} 46. Qg6+ {[%emt 0:00:16]} Kh8 {[%emt 0:00:45]} 47. Qh7# 1-0